fUSD/lending_fUSD_20240822
["ID","MTS","AMOUNT","RATE_DAILY","PERIOD"]
[335507587,1724291439947,-480.26117003,0.00010958,2]
[335507588,1724291439956,-151.671368,0.00010958,2]
[335507589,1724291439966,-500.0,0.00010958,2]
[335507590,1724291439975,-339.28025089,0.00010958,2]
[335507591,1724291439984,-530.85294396,0.00010958,2]
[335507592,1724291439994,-500.0,0.00010958,2]
[335507593,1724291440003,-347.84414589,0.00010958,2]
[335507594,1724291440014,-500.0,0.00010958,2]
[335507595,1724291440024,-500.0,0.00010958,2]
[335507596,1724291440036,-500.0,0.00010958,2]
[335507597,1724291440047,-500.0,0.00010958,2]
[335507598,1724291440057,-500.0,0.00010958,2]
[335507599,1724291440067,-500.0,0.00010958,2]
[335507600,1724291440078,-500.0,0.00010958,2]
[335507601,1724291440089,-500.0,0.00010958,2]
[335507602,1724291440099,-500.0,0.00010958,2]
[335507603,1724291440111,-500.0,0.00010958,2]
[335507604,1724291440121,-500.0,0.00010958,2]
[335507605,1724291440136,-500.0,0.00010958,2]
[335507606,1724291440146,-500.0,0.00010958,2]
[335507607,1724291440155,-500.0,0.00010958,2]
[335507608,1724291440164,-500.0,0.00010958,2]
[335507609,1724291440175,-151.0,0.00010958,2]
[335507610,1724291440184,-500.0,0.00010958,2]
[335507613,1724291440293,-151.0,0.00010958,2]
[335507614,1724291440305,-500.0,0.00010958,2]
[335507615,1724291440314,-151.0,0.00010958,2]
[335507616,1724291440324,-500.0,0.00010958,2]
[335507617,1724291440333,-156.844919,0.00010958,2]
[335507618,1724291440343,-500.0,0.00010958,2]
[335507619,1724291440352,-450.15834031,0.00010958,2]
[335507620,1724291440362,-534.1722411,0.00010958,2]
[335507621,1724291440373,-505.89046245,0.00010958,2]
[335507622,1724291440384,-151.676755,0.00010958,2]
[335507623,1724291440393,-515.72460186,0.00010958,2]
[335507624,1724291440402,-500.0,0.00010958,2]
[335507625,1724291440411,-500.0,0.00010958,2]
[335507626,1724291440422,-500.0,0.00010958,2]
[335507627,1724291440431,-500.0,0.00010958,2]
[335507628,1724291440441,-538.7847784,0.00010958,2]
[335507629,1724291440450,-500.0,0.00010958,2]
[335507630,1724291440459,-509.29567435,0.00010958,2]
[335507631,1724291440468,-500.0,0.00010958,2]
[335507632,1724291440478,-500.0,0.00010958,2]
[335507633,1724291440487,-500.0,0.00010958,2]
[335507634,1724291440496,-500.0,0.00010958,2]
[335507635,1724291440505,-392.62616024,0.00010958,2]
[335507636,1724291440776,-107.37383976,0.00010958,2]
[335507637,1724291440788,-500.0,0.00010958,2]
[335507638,1724291440797,-500.0,0.00010958,2]
[335507639,1724291440806,-500.0,0.00010958,2]
[335507640,1724291440815,-500.0,0.00010958,2]
[335507641,1724291440823,-500.0,0.00010958,2]
[335507642,1724291440832,-500.0,0.00010958,2]
[335507643,1724291440842,-500.0,0.00010958,2]
[335507644,1724291440851,-512.23362955,0.00010958,2]
[335507645,1724291440860,-500.0,0.00010958,2]
[335507646,1724291440870,-500.0,0.00010958,2]
[335507647,1724291440879,-500.0,0.00010958,2]
[335507648,1724291440888,-502.23323379,0.00010958,2]
[335507649,1724291440898,-326.09702794,0.00010958,2]
[335507650,1724291440908,-500.0,0.00010958,2]
[335507651,1724291440917,-169.18404174,0.00010958,2]
[335507652,1724291440927,-151.0,0.00010958,2]
[335507653,1724291440936,-523.67755871,0.00010958,2]
[335507654,1724291440945,-151.617499,0.00010958,2]
[335507655,1724291440955,-527.06557315,0.00010958,2]
[335507656,1724291440964,-815.05,0.00010958,2]
[335507657,1724291440973,-815.05,0.00010958,2]
[335507658,1724291440982,-815.05,0.00010958,2]
[335507659,1724291440991,-815.05,0.00010958,2]
[335507660,1724291441000,-815.05,0.00010958,2]
[335507661,1724291441009,-815.05,0.00010958,2]
[335507662,1724291441018,-815.05,0.00010958,2]
[335507663,1724291441027,-815.05,0.00010958,2]
[335507664,1724291441037,-815.05,0.00010958,2]
[335507665,1724291441046,-815.05,0.00010958,2]
[335507666,1724291441055,-815.05,0.00010958,2]
[335507667,1724291441064,-815.05,0.00010958,2]
[335507668,1724291441073,-815.05,0.00010958,2]
[335507669,1724291441082,-815.05,0.00010958,2]
[335507670,1724291441091,-815.05,0.00010958,2]
[335507671,1724291441101,-815.05,0.00010958,2]
[335507672,1724291441111,-815.05,0.00010958,2]
[335507673,1724291441120,-815.05,0.00010958,2]
[335507674,1724291441133,-815.05,0.00010958,2]
[335507675,1724291441142,-815.05,0.00010958,2]
[335507676,1724291441151,-815.05,0.00010958,2]
[335507677,1724291441162,-815.05,0.00010958,2]
[335507678,1724291441173,-815.05,0.00010958,2]
[335507679,1724291441184,-212.0188446,0.00010958,2]
[335507680,1724291441211,-120.24111113,0.00010958,2]
[335507681,1724291441222,-351.02646764,0.00010958,2]
[335507682,1724291441242,-287.34726879,0.00010958,2]
[335507683,1724291441256,-176.86946883,0.00010958,2]
[335507684,1724291441265,-466.40054812,0.00010958,2]
[335507685,1724291441277,-43.01821367,0.00010958,2]
[335507686,1724291441287,-500.0,0.00010958,2]
[335507687,1724291441307,-500.0,0.00010958,2]
[335507688,1724291441317,-150.0,0.00010958,2]
[335507689,1724291441327,-150.0,0.00010958,2]
[335507690,1724291441336,-151.394249,0.00010958,2]
[335507691,1724291441345,-150.0,0.00010958,2]
[335507692,1724291441354,-150.0,0.00010958,2]
[335507693,1724291441364,-150.0,0.00010958,2]
[335507694,1724291441373,-60.81660736,0.00010958,2]
[335507695,1724291441723,-528.0,0.00010958,2]
[335507696,1724291441733,-89.18339264,0.00010958,2]
[335507697,1724291441742,-203.35450499,0.00010958,2]
[335507698,1724291441752,-485.01841464,0.00010958,2]
[335507699,1724291441780,-14.98158536,0.00010958,2]
[335507700,1724291441791,-524.83249627,0.00010958,2]
[335507701,1724291441801,-47.72641837,0.00010958,2]
[335507702,1724291441822,-452.27358163,0.00010958,2]
[335507703,1724291441830,-500.0,0.00010958,2]
[335507704,1724291441840,-500.0,0.00010958,2]
[335507705,1724291441849,-257.0352,0.00010958,2]
[335507706,1724291441859,-500.0,0.00010958,2]
[335507707,1724291441869,-500.0,0.00010958,2]
[335507708,1724291441878,-380.28231182,0.00010958,2]
[335507709,1724291441888,-500.0,0.00010958,2]
[335507710,1724291441898,-500.0,0.00010958,2]
[335507711,1724291441907,-500.0,0.00010958,2]
[335507712,1724291441917,-500.0,0.00010958,2]
[335507713,1724291441926,-500.0,0.00010958,2]
[335507714,1724291441935,-500.0,0.00010958,2]
[335507715,1724291441944,-256.50504674,0.00010958,2]
[335507716,1724291441954,-500.0,0.00010958,2]
[335507717,1724291441963,-500.0,0.00010958,2]
[335507718,1724291441972,-500.0,0.00010958,2]
[335507719,1724291441982,-500.0,0.00010958,2]
[335507720,1724291441991,-399.93006559,0.00010958,2]
[335507721,1724291442001,-500.0,0.00010958,2]
[335507722,1724291442010,-500.0,0.00010958,2]
[335507723,1724291442023,-500.0,0.00010958,2]
[335507724,1724291442032,-500.0,0.00010958,2]
[335507725,1724291442043,-500.0,0.00010958,2]
[335507726,1724291442052,-500.0,0.00010958,2]
[335507727,1724291442061,-500.0,0.00010958,2]
[335507728,1724291442071,-500.0,0.00010958,2]
[335507729,1724291442191,-500.0,0.00010958,2]
[335507730,1724291442201,-500.0,0.00010958,2]
[335507731,1724291442213,-506.85308761,0.00010958,2]
[335507732,1724291442224,-500.0,0.00010958,2]
[335507733,1724291442233,-500.0,0.00010958,2]
[335507734,1724291442242,-500.0,0.00010958,2]
[335507735,1724291442251,-500.0,0.00010958,2]
[335507736,1724291442261,-500.0,0.00010958,2]
[335507737,1724291442271,-500.0,0.00010958,2]
[335507738,1724291442280,-500.0,0.00010958,2]
[335507739,1724291442290,-639.82060726,0.00010958,2]
[335507740,1724291442300,-512.86518066,0.00010958,2]
[335507741,1724291442309,-151.0,0.00010958,2]
[335507742,1724291442319,-151.0,0.00010958,2]
[335507743,1724291442328,-151.0,0.00010958,2]
[335507744,1724291442338,-151.0,0.00010958,2]
[335507745,1724291442347,-151.0,0.00010958,2]
[335507746,1724291442356,-151.0,0.00010958,2]
[335507747,1724291442366,-151.0,0.00010958,2]
[335507748,1724291442375,-151.0,0.00010958,2]
[335507749,1724291442384,-151.0,0.00010958,2]
[335507750,1724291442393,-151.0,0.00010958,2]
[335507751,1724291442403,-151.0,0.00010958,2]
[335507752,1724291442412,-227.032452,0.00010958,2]
[335507753,1724291442421,-590.61,0.00010958,2]
[335507754,1724291442431,-590.61,0.00010958,2]
[335507755,1724291442441,-590.61,0.00010958,2]
[335507756,1724291442451,-590.61,0.00010958,2]
[335507757,1724291442460,-500.0,0.00010958,2]
[335507758,1724291442470,-590.61,0.00010958,2]
[335507759,1724291442479,-590.61,0.00010958,2]
[335507760,1724291442488,-590.61,0.00010958,2]
[335507761,1724291442498,-590.61,0.00010958,2]
[335507762,1724291442508,-590.61,0.00010958,2]
[335507763,1724291442518,-590.61,0.00010958,2]
[335507764,1724291442527,-590.61,0.00010958,2]
[335507765,1724291442537,-590.61,0.00010958,2]
[335507766,1724291442547,-500.0,0.00010958,2]
[335507767,1724291442557,-590.61,0.00010958,2]
[335507768,1724291442566,-500.0,0.00010958,2]
[335507769,1724291442576,-590.61,0.00010958,2]
[335507770,1724291442585,-500.0,0.00010958,2]
[335507771,1724291442594,-590.61,0.00010958,2]
[335507772,1724291442603,-391.57953962,0.00010958,2]
[335507773,1724291442612,-590.61,0.00010958,2]
[335507774,1724291442622,-590.61,0.00010958,2]
[335507775,1724291442631,-590.61,0.00010958,2]
[335507776,1724291442640,-590.61,0.00010958,2]
[335507777,1724291442650,-590.61,0.00010958,2]
[335507778,1724291442659,-590.61,0.00010958,2]
[335507779,1724291442669,-314.70938412,0.00010958,2]
[335507780,1724291442700,-275.90061588,0.00010958,2]
[335507781,1724291442710,-590.61,0.00010958,2]
[335507782,1724291442720,-590.64827625,0.00010958,2]
[335507783,1724291442729,-516.41869724,0.00010958,2]
[335507784,1724291442739,-506.41169372,0.00010958,2]
[335507785,1724291442748,-151.0,0.00010958,2]
[335507786,1724291442758,-386.26671691,0.00010958,2]
[335507787,1724291442771,-113.73328309,0.00010958,2]
[335507788,1724291442780,-151.0,0.00010958,2]
[335507789,1724291442790,-524.1034824,0.00010958,2]
[335507790,1724291442800,-388.12599342,0.00010958,2]
[335507791,1724291442809,-151.0,0.00010958,2]
[335507792,1724291442819,-151.841149,0.00010958,2]
[335507793,1724291442828,-779.06,0.00010958,2]
[335507794,1724291442838,-598.25614212,0.00010958,2]
[335507795,1724291442848,-23.30478397,0.00010958,2]
[335507796,1724291442861,-755.75521603,0.00010958,2]
[335507797,1724291442870,-510.71971722,0.00010958,2]
[335507798,1724291442880,-779.06,0.00010958,2]
[335507799,1724291442889,-779.06,0.00010958,2]
[335507800,1724291442898,-779.06,0.00010958,2]
[335507801,1724291442907,-779.06,0.00010958,2]
[335507802,1724291442917,-779.06,0.00010958,2]
[335507803,1724291442926,-779.06,0.00010958,2]
[335507804,1724291442936,-779.06,0.00010958,2]
[335507805,1724291442945,-779.06,0.00010958,2]
[335507806,1724291442955,-517.3307598,0.00010958,2]
[335507807,1724291442964,-779.06,0.00010958,2]
[335507808,1724291442973,-779.06,0.00010958,2]
[335507809,1724291442983,-779.06,0.00010958,2]
[335507810,1724291442992,-779.06,0.00010958,2]
[335507811,1724291443001,-779.06,0.00010958,2]
[335507812,1724291443010,-500.0,0.00010958,2]
[335507813,1724291443019,-779.06,0.00010958,2]
[335507814,1724291443028,-500.0,0.00010958,2]
[335507815,1724291443038,-779.06,0.00010958,2]
[335507816,1724291443047,-500.0,0.00010958,2]
[335507817,1724291443057,-510.4528782,0.00010958,2]
[335507818,1724291443066,-779.06,0.00010958,2]
[335507819,1724291443076,-500.0,0.00010958,2]
[335507820,1724291443085,-779.06,0.00010958,2]
[335507821,1724291443095,-500.0,0.00010958,2]
[335507822,1724291443104,-779.06,0.00010958,2]
[335507823,1724291443113,-500.0,0.00010958,2]
[335507824,1724291443123,-779.06,0.00010958,2]
[335507825,1724291443136,-500.0,0.00010958,2]
[335507826,1724291443145,-779.06,0.00010958,2]
[335507827,1724291443154,-500.0,0.00010958,2]
[335507828,1724291443163,-779.06,0.00010958,2]
[335507829,1724291443173,-500.0,0.00010958,2]
[335507830,1724291443182,-779.29779094,0.00010958,2]
[335507831,1724291443192,-500.0,0.00010958,2]
[335507832,1724291443202,-500.0,0.00010958,2]
[335507833,1724291443212,-505.85150976,0.00010958,2]
[335507834,1724291443222,-500.0,0.00010958,2]
[335507835,1724291443232,-500.0,0.00010958,2]
[335507836,1724291443241,-500.0,0.00010958,2]
[335507837,1724291443251,-500.0,0.00010958,2]
[335507838,1724291443260,-488.712857,0.00010958,2]
[335507839,1724291443269,-500.0,0.00010958,2]
[335507840,1724291443279,-504.55925308,0.00010958,2]
[335507841,1724291443288,-500.0,0.00010958,2]
[335507843,1724291443298,-141.63784234,0.00010958,2]
[335507846,1724291443321,-358.36215766,0.00010958,2]
[335507847,1724291443330,-500.0,0.00010958,2]
[335507851,1724291443340,-507.43295716,0.00010958,2]
[335507853,1724291443349,-275.50740518,0.00010958,2]
[335507856,1724291443362,-224.49259482,0.00010958,2]
[335507857,1724291443371,-138.07940718,0.00010958,2]
[335507859,1724291443746,-361.92059282,0.00010958,2]
[335507860,1724291443756,-500.0,0.00010958,2]
[335507861,1724291443765,-500.0,0.00010958,2]
[335507862,1724291443775,-114.39440718,0.00010958,2]
[335507864,1724291443969,-385.60559282,0.00010958,2]
[335507865,1724291443979,-311.07439997,0.00010958,2]
[335507866,1724291443989,-250.72644499,0.00010958,2]
[335507867,1724291444001,-270.57601177,0.00010958,2]
[335507868,1724291444011,-532.75,0.00010958,2]
[335507869,1724291444020,-532.75,0.00010958,2]
[335507870,1724291444029,-532.75,0.00010958,2]
[335507871,1724291444039,-532.75,0.00010958,2]
[335507872,1724291444048,-532.75,0.00010958,2]
[335507873,1724291444058,-532.75,0.00010958,2]
[335507874,1724291444067,-532.75,0.00010958,2]
[335507875,1724291444076,-532.75,0.00010958,2]
[335507876,1724291444086,-532.75,0.00010958,2]
[335507877,1724291444095,-520.2611125,0.00010958,2]
[335507878,1724291444105,-532.75,0.00010958,2]
[335507879,1724291444115,-532.75,0.00010958,2]
[335507880,1724291444125,-532.75,0.00010958,2]
[335507881,1724291444234,-500.0,0.00010958,2]
[335507882,1724291444244,-532.75,0.00010958,2]
[335507883,1724291444254,-500.0,0.00010958,2]
[335507884,1724291444263,-500.0,0.00010958,2]
[335507885,1724291444272,-532.75,0.00010958,2]
[335507886,1724291444282,-500.0,0.00010958,2]
[335507887,1724291444292,-500.0,0.00010958,2]
[335507888,1724291444301,-532.75,0.00010958,2]
[335507889,1724291444311,-500.0,0.00010958,2]
[335507890,1724291444320,-532.75,0.00010958,2]
[335507891,1724291444330,-500.0,0.00010958,2]
[335507892,1724291444339,-500.0,0.00010958,2]
[335507893,1724291444350,-532.75,0.00010958,2]
[335507894,1724291444360,-500.0,0.00010958,2]
[335507895,1724291444370,-500.0,0.00010958,2]
[335507896,1724291444380,-532.75,0.00010958,2]
[335507897,1724291444389,-500.0,0.00010958,2]
[335507898,1724291444399,-500.0,0.00010958,2]
[335507899,1724291444409,-532.75,0.00010958,2]
[335507900,1724291444418,-500.0,0.00010958,2]
[335507901,1724291444428,-500.0,0.00010958,2]
[335507902,1724291444438,-532.75,0.00010958,2]
[335507903,1724291444448,-500.0,0.00010958,2]
[335507904,1724291444458,-500.0,0.00010958,2]
[335507905,1724291444467,-532.75,0.00010958,2]
[335507906,1724291444477,-500.0,0.00010958,2]
[335507907,1724291444486,-500.0,0.00010958,2]
[335507908,1724291444496,-532.75,0.00010958,2]
[335507909,1724291444505,-506.06292394,0.00010958,2]
[335507910,1724291444515,-500.0,0.00010958,2]
[335507911,1724291444524,-500.0,0.00010958,2]
[335507912,1724291444534,-151.0,0.00010958,2]
[335507913,1724291444551,-532.75,0.00010958,2]
[335507914,1724291444562,-500.0,0.00010958,2]
[335507915,1724291444571,-261.90022094,0.00010958,2]
[335507916,1724291444580,-156.829565,0.00010958,2]
[335507917,1724291444590,-532.76890349,0.00010958,2]
[335507918,1724291444599,-500.0,0.00010958,2]
[335507919,1724291444608,-500.0,0.00010958,2]
[335507920,1724291444618,-500.0,0.00010958,2]
[335507921,1724291444627,-212.3523466,0.00010958,2]
[335507922,1724291444637,-505.20269629,0.00010958,2]
[335507923,1724291444646,-500.0,0.00010958,2]
[335507924,1724291444656,-500.0,0.00010958,2]
[335507925,1724291444665,-500.0,0.00010958,2]
[335507926,1724291444674,-500.0,0.00010958,2]
[335507927,1724291444684,-500.0,0.00010958,2]
[335507928,1724291444693,-509.99164028,0.00010958,2]
[335507929,1724291444702,-500.0,0.00010958,2]
[335507930,1724291444712,-516.84882928,0.00010958,2]
[335507931,1724291444721,-515.12089506,0.00010958,2]
[335507932,1724291444731,-500.0,0.00010958,2]
[335507933,1724291444740,-500.0,0.00010958,2]
[335507934,1724291444750,-186.51,0.00010958,2]
[335507935,1724291444759,-500.0,0.00010958,2]
[335507936,1724291444769,-500.0,0.00010958,2]
[335507937,1724291444778,-500.0,0.00010958,2]
[335507938,1724291444789,-218.44008433,0.00010958,2]
[335507939,1724291444802,-573.56847051,0.00010958,2]
[335507940,1724291444811,-1729.95,0.00010958,2]
[335507941,1724291444821,-1729.95,0.00010958,2]
[335507942,1724291444831,-500.0,0.00010958,2]
[335507943,1724291444841,-1729.95,0.00010958,2]
[335507944,1724291444850,-500.0,0.00010958,2]
[335507945,1724291444860,-1729.95,0.00010958,2]
[335507946,1724291444869,-500.0,0.00010958,2]
[335507947,1724291444879,-453.96372587,0.00010958,2]
[335507948,1724291444888,-1729.95,0.00010958,2]
[335507949,1724291444898,-1729.95,0.00010958,2]
[335507950,1724291444908,-1729.95,0.00010958,2]
[335507951,1724291444917,-1729.95,0.00010958,2]
[335507952,1724291444927,-1729.95,0.00010958,2]
[335507953,1724291444936,-1729.95,0.00010958,2]
[335507954,1724291444946,-1729.95,0.00010958,2]
[335507955,1724291444955,-1729.95,0.00010958,2]
[335507956,1724291444965,-500.0,0.00010958,2]
[335507957,1724291444975,-500.0,0.00010958,2]
[335507958,1724291444984,-1729.95,0.00010958,2]
[335507959,1724291444993,-513.12610839,0.00010958,2]
[335507960,1724291445002,-500.0,0.00010958,2]
[335507961,1724291445012,-1729.95,0.00010958,2]
[335507962,1724291445021,-500.0,0.00010958,2]
[335507963,1724291445030,-1729.95,0.00010958,2]
[335507964,1724291445040,-500.0,0.00010958,2]
[335507965,1724291445050,-1729.95,0.00010958,2]
[335507966,1724291445060,-500.0,0.00010958,2]
[335507967,1724291445069,-1729.95,0.00010958,2]
[335507968,1724291445078,-500.0,0.00010958,2]
[335507969,1724291445088,-1729.95,0.00010958,2]
[335507970,1724291445097,-500.0,0.00010958,2]
[335507971,1724291445107,-1729.95,0.00010958,2]
[335507972,1724291445116,-500.0,0.00010958,2]
[335507973,1724291445128,-1729.95,0.00010958,2]
[335507974,1724291445138,-500.0,0.00010958,2]
[335507975,1724291445148,-1729.95,0.00010958,2]
[335507976,1724291445157,-500.0,0.00010958,2]
[335507977,1724291445166,-1729.95,0.00010958,2]
[335507978,1724291445177,-558.5345778,0.00010958,2]
[335507979,1724291445186,-1729.95,0.00010958,2]
[335507980,1724291445195,-1730.110575,0.00010958,2]
[335507981,1724291445205,-507.51389314,0.00010958,2]
[335507982,1724291445215,-151.0,0.00010958,2]
[335507983,1724291445224,-151.0,0.00010958,2]
[335507984,1724291445234,-151.530124,0.00010958,2]
[335507985,1724291445243,-1377.18,0.00010958,2]
[335507986,1724291445252,-506.71442611,0.00010958,2]
[335507987,1724291445262,-1377.18,0.00010958,2]
[335507988,1724291445272,-1377.18,0.00010958,2]
[335507989,1724291445282,-1377.18,0.00010958,2]
[335507990,1724291445291,-1377.18,0.00010958,2]
[335507991,1724291445300,-1377.18,0.00010958,2]
[335507992,1724291445310,-1377.18,0.00010958,2]
[335507993,1724291445319,-1377.18,0.00010958,2]
[335507994,1724291445328,-1377.18,0.00010958,2]
[335507995,1724291445338,-500.0,0.00010958,2]
[335507996,1724291445348,-151.0,0.00010958,2]
[335507997,1724291445358,-1377.18,0.00010958,2]
[335507998,1724291445367,-500.0,0.00010958,2]
[335507999,1724291445377,-204.733152,0.00010958,2]
[335508000,1724291445387,-1377.18,0.00010958,2]
[335508001,1724291445396,-500.0,0.00010958,2]
[335508002,1724291445406,-1377.18,0.00010958,2]
[335508003,1724291445416,-500.0,0.00010958,2]
[335508004,1724291445425,-1377.18,0.00010958,2]
[335508005,1724291445435,-500.0,0.00010958,2]
[335508006,1724291445445,-1377.18,0.00010958,2]
[335508007,1724291445455,-500.0,0.00010958,2]
[335508008,1724291445465,-1377.18,0.00010958,2]
[335508009,1724291445474,-500.0,0.00010958,2]
[335508010,1724291445484,-1377.18,0.00010958,2]
[335508011,1724291445493,-500.0,0.00010958,2]
[335508012,1724291445502,-1377.18,0.00010958,2]
[335508013,1724291445512,-500.0,0.00010958,2]
[335508014,1724291445521,-1377.18,0.00010958,2]
[335508015,1724291445530,-500.0,0.00010958,2]
[335508016,1724291445541,-723.12521218,0.00010958,2]
[335508017,1724291445589,-340.68338463,0.00010958,2]
[335508018,1724291446374,-313.37140319,0.00010958,2]
[335508019,1724291446383,-500.0,0.00010958,2]
[335508020,1724291446392,-1377.18,0.00010958,2]
[335508021,1724291446401,-500.0,0.00010958,2]
[335508022,1724291446411,-1377.18,0.00010958,2]
[335508023,1724291446420,-501.13820977,0.00010958,2]
[335508024,1724291446429,-759.3303871,0.00010958,2]
[335508025,1724291446442,-617.8496129,0.00010958,2]
[335508026,1724291446451,-1377.18,0.00010958,2]
[335508027,1724291446460,-1377.35983061,0.00010958,2]
[335508028,1724291446470,-500.0,0.00010958,2]
[335508029,1724291446479,-500.0,0.00010958,2]
[335508030,1724291446488,-558.56287567,0.00010958,2]
[335508031,1724291446497,-184.02548486,0.00010958,2]
[335508032,1724291446600,-302.0,0.00010958,2]
[335508033,1724291446611,-13.97451514,0.00010958,2]
[335508034,1724291446621,-500.0,0.00010958,2]
[335508035,1724291446725,-500.0,0.00010958,2]
[335508036,1724291446735,-287.36311567,0.00010958,2]
[335508037,1724291446747,-212.63688433,0.00010958,2]
[335508038,1724291446756,-500.0,0.00010958,2]
[335508039,1724291446765,-500.0,0.00010958,2]
[335508040,1724291446775,-500.0,0.00010958,2]
[335508041,1724291446784,-81.72625956,0.00010958,2]
[335508042,1724291446796,-418.27374044,0.00010958,2]
[335508043,1724291446806,-500.0,0.00010958,2]
[335508044,1724291446815,-500.0,0.00010958,2]
[335508045,1724291446824,-333.85753441,0.00010958,2]
[335508046,1724291446834,-269.7468868,0.00010958,2]
[335508047,1724291446843,-500.0,0.00010958,2]
[335508048,1724291446853,-500.0,0.00010958,2]
[335508049,1724291446862,-500.0,0.00010958,2]
[335508050,1724291446871,-500.0,0.00010958,2]
[335508051,1724291446880,-500.0,0.00010958,2]
[335508052,1724291446889,-500.0,0.00010958,2]
[335508053,1724291446898,-500.0,0.00010958,2]
[335508054,1724291446908,-500.0,0.00010958,2]
[335508055,1724291446925,-513.17768251,0.00010958,2]
[335508056,1724291446936,-550.99249508,0.00010958,2]
[335508057,1724291446946,-500.0,0.00010958,2]
[335508058,1724291446956,-500.0,0.00010958,2]
[335508059,1724291446966,-500.0,0.00010958,2]
[335508060,1724291446976,-500.0,0.00010958,2]
[335508061,1724291446985,-223.05643699,0.00010958,2]
[335508062,1724291447002,-276.94356301,0.00010958,2]
[335508063,1724291447011,-74.04953819,0.00010958,2]
[335508064,1724291447024,-358.59,0.00010958,2]
[335508065,1724291447035,-67.36046181,0.00010958,2]
[335508066,1724291447046,-500.0,0.00010958,2]
[335508067,1724291447055,-328.82433139,0.00010958,2]
[335508068,1724291447085,-171.17566861,0.00010958,2]
[335508069,1724291447094,-245.02683139,0.00010958,2]
[335508070,1724291487191,321.75,9.874e-05,2]
[335508071,1724291505189,218.66,9.862e-05,2]
[335508072,1724291632595,500.0,9.788e-05,2]
[335508074,1724291668820,250.0,9.79e-05,2]
[335508076,1724291865959,805.62,8.219e-05,2]
[335508077,1724291887526,1000.0,9.782e-05,2]
[335508078,1724292018343,7584.67251845,9.782e-05,2]
[335508079,1724292031318,167.45,9.783e-05,2]
[335508080,1724292033712,218.67,9.782e-05,2]
[335508081,1724292098773,160.87,9.777e-05,2]
[335508082,1724292112316,7584.67251845,9.782e-05,2]
[335508083,1724292210356,7584.67251845,9.782e-05,2]
[335508084,1724292241837,170688.0,9e-05,2]
[335508085,1724292273800,250.0,9.775e-05,2]
[335508086,1724292325327,150.0,9.775e-05,2]
[335508087,1724292325349,150.0,9.775e-05,2]
[335508088,1724292325369,150.0,9.775e-05,2]
[335508089,1724292325389,150.0,9.775e-05,2]
[335508090,1724292325416,150.0,9.775e-05,2]
[335508091,1724292325446,150.0,9.775e-05,2]
[335508092,1724292325478,182.65,9.775e-05,2]
[335508093,1724292325509,6502.02251845,9.775e-05,2]
[335508094,1724292350299,797.17,8.219e-05,2]
[335508095,1724292361001,200.0,9.778e-05,2]
[335508096,1724292441327,7584.67251845,9.778e-05,2]
[335508098,1724292565341,150.0,9.778e-05,2]
[335508099,1724292565361,150.0,9.778e-05,2]
[335508100,1724292565382,150.0,9.778e-05,2]
[335508101,1724292565403,150.0,9.778e-05,2]
[335508102,1724292565423,150.0,9.778e-05,2]